fUST/lending_fUST_20240720
["ID","MTS","AMOUNT","RATE_DAILY","PERIOD"]
[332681905,1721435449395,-1856.34,0.00016438,2]
[332681906,1721435449405,-477.56876561,0.00016438,2]
[332681907,1721435449416,-1370.47,0.00016438,2]
[332681908,1721435449426,-500.0,0.00016438,2]
[332681909,1721435449436,-10122.4,0.00016438,2]
[332681910,1721435449446,-1431.68,0.00016438,2]
[332681911,1721435449456,-500.0,0.00016438,2]
[332681912,1721435449465,-613.04,0.00016438,2]
[332681913,1721435449475,-500.0,0.00016438,2]
[332681914,1721435449485,-500.0,0.00016438,2]
[332681915,1721435449495,-592.76,0.00016438,2]
[332681916,1721435449505,-500.0,0.00016438,2]
[332681917,1721435449515,-2968.0,0.00016438,2]
[332681918,1721435449524,-16039.66,0.00016438,2]
[332681919,1721435449534,-503.27331606,0.00016438,2]
[332681920,1721435449544,-422.71958696,0.00016438,2]
[332681921,1721435449554,-500.0,0.00016438,2]
[332681922,1721435449566,-1185.42,0.00016438,2]
[332681923,1721435449576,-607.66,0.00016438,2]
[332681924,1721435449586,-500.0,0.00016438,2]
[332681925,1721435449597,-500.0,0.00016438,2]
[332681926,1721435449606,-500.0,0.00016438,2]
[332681927,1721435449617,-500.0,0.00016438,2]
[332681928,1721435449626,-500.0,0.00016438,2]
[332681929,1721435449636,-2344.91,0.00016438,2]
[332681930,1721435449645,-3207.02,0.00016438,2]
[332681931,1721435449655,-504.20490734,0.00016438,2]
[332681932,1721435449665,-31990.24237477,0.00016438,2]
[332681933,1721435458453,180.74,0.00013283,2]
[332681934,1721435458473,150.03010821,0.00013283,2]
[332681935,1721435471085,99.45398934,0.00013283,2]
[332681936,1721435471107,243.30964415,0.00013283,2]
[332681937,1721435471128,237.33967414,0.00013283,2]
[332681938,1721435471150,245.0,0.00013283,2]
[332681939,1721435471174,248.68489287,0.00013283,2]
[332681940,1721435471199,207.29693414,0.00013283,2]
[332681941,1721435471224,5920.00345437,0.00013283,2]
[332681942,1721435481675,453.60434196,0.00013283,2]
[332681945,1721435495455,208.78259105,0.00013283,2]
[332681946,1721435497291,992.61120669,0.00013283,2]
[332681947,1721435500456,567.01545952,0.00010959,2]
[332681948,1721435532844,500.0,0.0002502,120]
[332681949,1721435593287,2850.0,0.000214,30]
[332681952,1721436178449,248.68489287,9.999e-05,2]
[332681954,1721436192922,150.0,0.000214,30]
[332681955,1721436340191,-212.271617,0.00014202,2]
[332681956,1721436340215,-220.551151,0.00014269,2]
[332681957,1721436340240,-220.551151,0.00014308,2]
[332681958,1721436340262,-220.551151,0.00014347,2]
[332681959,1721436340284,-108.66563846,0.00014386,2]
[332681961,1721436425299,-111.88551254,0.00014386,2]
[332681962,1721436425323,-220.551151,0.00014425,2]
[332681963,1721436425345,-220.551151,0.00014464,2]
[332681964,1721436425368,-220.551151,0.00014503,2]
[332681965,1721436425390,-220.551151,0.00014542,2]
[332681966,1721436425412,-220.551151,0.00014582,2]
[332681967,1721436425433,-220.551151,0.00014621,2]
[332681968,1721436425454,-220.551151,0.0001466,2]
[332681969,1721436425476,-220.551151,0.00014699,2]
[332681970,1721436425497,-2352.01333721,0.00014716,2]
[332681971,1721436425519,-220.551151,0.00014738,2]
[332681972,1721436425544,-2590.6962987,0.00014754,2]
[332681973,1721436425569,-220.551151,0.00014777,2]
[332681974,1721436425590,-166.666666,0.00014795,2]
[332681975,1721436425611,-251.0,0.00014798,2]
[332681976,1721436425633,-24900.0,0.00014799,2]
[332681977,1721436425654,-220.551151,0.00014816,2]
[332681978,1721436425677,-220.551151,0.00014855,2]
[332681979,1721436425698,-220.551151,0.00014894,2]
[332681980,1721436425720,-220.551151,0.00014934,2]
[332681981,1721436425743,-220.551151,0.00014973,2]
[332681982,1721436425764,-500.53764773,0.00014999,2]
[332681983,1721436425784,-500.53764773,0.00014999,2]
[332681984,1721436425806,-828.65736599,0.00015,2]
[332681985,1721436425827,-220.551151,0.00015012,2]
[332681986,1721436425848,-204.54662253,0.00015313,2]
[332681987,1721436425870,-306.0,0.00015616,2]
[332681988,1721436425892,-153.0,0.00015616,2]
[332681989,1721436425913,-4800.725726,0.00015708,2]
[332681990,1721436425934,-163.36263634,0.00015708,4]
[332681991,1721436425956,-533.61474575,0.00015712,2]
[332681992,1721436425977,-211.5186256,0.00015744,2]
[332681993,1721436425997,-156.42124676,0.00015746,2]
[332681994,1721436426017,-402.60952539,0.00015851,2]
[332681995,1721436426041,-153.0,0.00016164,2]
[332681996,1721436426062,-360.7963904,0.00016273,2]
[332681997,1721436426082,-2346.03404505,0.00016338,2]
[332681998,1721436426102,-2000.0,0.00016338,2]
[332681999,1721436426122,-367.2522507,0.0001635,2]
[332682000,1721436426142,-241.8722,0.00016356,2]
[332682001,1721436426163,-5302.51874707,0.00016392,2]
[332682002,1721436426182,-188.09983372,0.00016427,2]
[332682003,1721436426206,-500.0,0.00016427,2]
[332682004,1721436426227,-247.65436752,0.00016427,2]
[332682005,1721436426249,-486.67174214,0.00016427,2]
[332682006,1721436426273,-500.0,0.00016427,2]
[332682007,1721436426296,-370.28265835,0.00016427,2]
[332682008,1721436426321,-500.0,0.00016427,2]
[332682009,1721436426342,-500.0,0.00016427,2]
[332682010,1721436426364,-500.0,0.00016427,2]
[332682011,1721436426386,-500.0,0.00016427,2]
[332682012,1721436426407,-489.37987706,0.00016427,2]
[332682013,1721436426433,-500.0,0.00016427,2]
[332682014,1721436426458,-500.0,0.00016427,2]
[332682015,1721436426479,-500.0,0.00016427,2]
[332682016,1721436426501,-500.0,0.00016427,2]
[332682017,1721436426522,-500.0,0.00016427,2]
[332682018,1721436426545,-500.0,0.00016427,2]
[332682019,1721436426567,-259.61330393,0.00016427,2]
[332682020,1721436426587,-500.0,0.00016427,2]
[332682021,1721436426608,-500.0,0.00016427,2]
[332682022,1721436426629,-500.0,0.00016427,2]
[332682023,1721436426649,-400.0,0.00016427,2]
[332682024,1721436426672,-78784.04883481,0.00016428,2]
[332682025,1721436427106,-154.74467129,0.00015751,2]
[332682026,1721436427129,-845.25532871,0.00016428,2]
[332682027,1721436432088,-1047.08279423,0.00015583,2]
[332682028,1721436433099,-750.0,0.00015583,2]
[332682029,1721436441104,-165.405663,0.00015583,2]
[332682031,1721436473623,500.0,0.0002502,120]
[332682036,1721436514078,500.0,0.0002502,120]
[332682069,1721436632363,-166.666666,0.00014795,2]
[332682070,1721436632374,-250.0,0.00015071,2]
[332682071,1721436632383,-584.18659277,0.00015169,2]
[332682072,1721436632394,-517.69,0.00015169,2]
[332682073,1721436632422,-544.20620143,0.00015169,2]
[332682074,1721436632431,-319.53653133,0.00015708,2]
[332682075,1721436632441,-153.0,0.00016164,2]
[332682076,1721436632451,-153.0,0.00016164,2]
[332682077,1721436632460,-153.0,0.000162,2]
[332682078,1721436632470,-153.0,0.000162,2]
[332682079,1721436632480,-180.3981952,0.00016273,2]
[332682080,1721436632490,-1812.70061287,0.00016328,2]
[332682081,1721436632499,-2000.0,0.00016338,2]
[332682082,1721436632510,-58289.65708666,0.00016428,2]
[332682115,1721436638518,-3071.26227598,0.00016428,2]
[332682117,1721436638531,-3421.82264615,0.00016428,2]
[332682122,1721436638578,-15672.41338843,0.00016428,2]
[332682125,1721436638590,-323.61595303,0.00016428,2]
[332682127,1721436638602,-35736.21031887,0.00016428,2]
[332682151,1721436641051,-77653.79698388,0.00016428,2]
[332682152,1721436641062,-43148.6174784,0.00016428,2]
[332682153,1721436641074,-150.0,0.00016434,2]
[332682154,1721436641084,-504.0,0.00016434,2]
[332682155,1721436641095,-1408.0,0.00016434,2]
[332682156,1721436641105,-691.71,0.00016438,2]
[332682157,1721436641115,-500.0,0.00016438,2]
[332682158,1721436641125,-500.0,0.00016438,2]
[332682159,1721436641134,-500.0,0.00016438,2]
[332682160,1721436641144,-211.69137716,0.00016438,2]
[332682161,1721436641153,-809.17,0.00016438,2]
[332682162,1721436641162,-2253.85,0.00016438,2]
[332682163,1721436641171,-500.0,0.00016438,2]
[332682164,1721436641182,-754.48,0.00016438,2]
[332682165,1721436641194,-500.0,0.00016438,2]
[332682166,1721436641205,-340.63638274,0.00016438,2]
[332682167,1721436641215,-500.0,0.00016438,2]
[332682168,1721436641224,-592.91,0.00016438,2]
[332682169,1721436641233,-500.0,0.00016438,2]
[332682170,1721436641242,-500.0,0.00016438,2]
[332682171,1721436641251,-1331.85,0.00016438,2]
[332682172,1721436641260,-563.77,0.00016438,2]
[332682173,1721436641268,-638.76155097,0.00016438,2]
[332682174,1721436641277,-500.0,0.00016438,2]
[332682175,1721436641287,-498.1774399,0.00016438,2]
[332682176,1721436641299,-500.0,0.00016438,2]
[332682177,1721436641307,-861.01,0.00016438,2]
[332682178,1721436641316,-498.87232176,0.00016438,2]
[332682179,1721436641326,-1063.97,0.00016438,2]
[332682180,1721436641335,-508.75229527,0.00016438,2]
[332682181,1721436641344,-504.53,0.00016438,2]
[332682182,1721436641353,-500.0,0.00016438,2]
[332682183,1721436641362,-500.0,0.00016438,2]
[332682184,1721436641372,-500.0,0.00016438,2]
[332682185,1721436641381,-500.0,0.00016438,2]
[332682186,1721436641390,-2762.4,0.00016438,2]
[332682187,1721436641400,-500.0,0.00016438,2]
[332682188,1721436641409,-500.0,0.00016438,2]
[332682189,1721436641418,-500.0,0.00016438,2]
[332682190,1721436641427,-500.0,0.00016438,2]
[332682191,1721436641436,-500.0,0.00016438,2]
[332682192,1721436641446,-501.1559506,0.00016438,2]
[332682193,1721436641455,-500.0,0.00016438,2]
[332682194,1721436641464,-500.0,0.00016438,2]
[332682195,1721436641473,-628.94,0.00016438,2]
[332682196,1721436641482,-500.0,0.00016438,2]
[332682197,1721436641491,-500.0,0.00016438,2]
[332682198,1721436641501,-500.0,0.00016438,2]
[332682199,1721436641510,-500.0,0.00016438,2]
[332682200,1721436641519,-503.82780258,0.00016438,2]
[332682201,1721436641527,-151.0,0.00016438,2]
[332682202,1721436641537,-151.0,0.00016438,2]
[332682203,1721436641546,-1584.55,0.00016438,2]
[332682204,1721436641555,-380.93126001,0.00016438,2]
[332682205,1721436641564,-504.63171882,0.00016438,2]
[332682206,1721436641574,-559.8459662,0.00016438,2]
[332682207,1721436641583,-726.79,0.00016438,2]
[332682208,1721436641592,-1042.66,0.00016438,2]
[332682209,1721436641602,-500.0,0.00016438,2]
[332682210,1721436641611,-599.6110334,0.00016438,2]
[332682211,1721436641621,-500.0,0.00016438,2]
[332682212,1721436641630,-500.0,0.00016438,2]
[332682213,1721436641639,-500.0,0.00016438,2]
[332682214,1721436641649,-500.0,0.00016438,2]
[332682215,1721436641658,-500.0,0.00016438,2]
[332682216,1721436641667,-500.0,0.00016438,2]
[332682217,1721436641677,-500.0,0.00016438,2]
[332682218,1721436641685,-500.0,0.00016438,2]
[332682219,1721436641695,-673.81,0.00016438,2]
[332682220,1721436641705,-558.85881519,0.00016438,2]
[332682221,1721436641714,-500.0,0.00016438,2]
[332682222,1721436641723,-500.0,0.00016438,2]
[332682223,1721436641894,-635.02959603,0.00016438,2]
[332682224,1721436641947,-500.0,0.00016438,2]
[332682225,1721436641956,-500.0,0.00016438,2]
[332682226,1721436641966,-500.0,0.00016438,2]
[332682227,1721436641975,-500.0,0.00016438,2]
[332682228,1721436641984,-500.0,0.00016438,2]
[332682229,1721436641993,-500.0,0.00016438,2]
[332682230,1721436642002,-500.0,0.00016438,2]
[332682231,1721436642011,-500.0,0.00016438,2]
[332682232,1721436642020,-500.0,0.00016438,2]
[332682233,1721436642029,-500.0,0.00016438,2]
[332682234,1721436642038,-500.0,0.00016438,2]
[332682235,1721436642047,-852.1,0.00016438,2]
[332682236,1721436642057,-687.38,0.00016438,2]
[332682237,1721436642066,-500.0,0.00016438,2]
[332682238,1721436642075,-500.0,0.00016438,2]
[332682239,1721436642084,-345.49670736,0.00016438,2]
[332682240,1721436642093,-500.0,0.00016438,2]
[332682241,1721436642103,-500.0,0.00016438,2]
[332682242,1721436642112,-579.27,0.00016438,2]
[332682243,1721436642121,-1142.37,0.00016438,2]
[332682244,1721436642131,-500.0,0.00016438,2]
[332682245,1721436642140,-644.7,0.00016438,2]
[332682246,1721436642149,-511.52776106,0.00016438,2]
[332682247,1721436642159,-500.0,0.00016438,2]
[332682248,1721436642167,-500.0,0.00016438,2]
[332682249,1721436642176,-500.0,0.00016438,2]
[332682250,1721436642186,-500.0,0.00016438,2]
[332682251,1721436642195,-500.0,0.00016438,2]
[332682252,1721436642205,-756.36,0.00016438,2]
[332682253,1721436642215,-874.36,0.00016438,2]
[332682254,1721436642223,-351.42971393,0.00016438,2]
[332682255,1721436642232,-500.0,0.00016438,2]
[332682256,1721436642242,-1152.16,0.00016438,2]
[332682257,1721436642251,-515.29099751,0.00016438,2]
[332682258,1721436642260,-500.0,0.00016438,2]
[332682259,1721436642270,-656.4,0.00016438,2]
[332682260,1721436642279,-500.0,0.00016438,2]
[332682261,1721436642291,-669.1,0.00016438,2]
[332682262,1721436642302,-500.0,0.00016438,2]
[332682263,1721436642311,-658.96,0.00016438,2]
[332682264,1721436642320,-586.11,0.00016438,2]
[332682265,1721436642329,-500.0,0.00016438,2]
[332682266,1721436642339,-2337.17,0.00016438,2]
[332682267,1721436642348,-500.0,0.00016438,2]
[332682268,1721436642356,-500.0,0.00016438,2]
[332682269,1721436642366,-571.0133454,0.00016438,2]
[332682270,1721436642375,-500.0,0.00016438,2]
[332682271,1721436642384,-500.0,0.00016438,2]
[332682272,1721436642393,-500.0,0.00016438,2]
[332682273,1721436642403,-540.45,0.00016438,2]
[332682274,1721436642412,-500.0,0.00016438,2]
[332682275,1721436642421,-500.0,0.00016438,2]
[332682276,1721436642431,-500.0,0.00016438,2]
[332682277,1721436642440,-500.0,0.00016438,2]
[332682278,1721436642450,-500.0,0.00016438,2]
[332682279,1721436642460,-500.0,0.00016438,2]
[332682280,1721436642470,-500.0,0.00016438,2]
[332682281,1721436642479,-500.0,0.00016438,2]
[332682282,1721436642488,-500.0,0.00016438,2]
[332682283,1721436642497,-500.0,0.00016438,2]
[332682284,1721436642508,-500.0,0.00016438,2]
[332682285,1721436642517,-500.0,0.00016438,2]
[332682286,1721436642526,-562.51,0.00016438,2]
[332682287,1721436642535,-500.0,0.00016438,2]
[332682288,1721436642545,-500.0,0.00016438,2]
[332682289,1721436642555,-1863.66,0.00016438,2]
[332682290,1721436642567,-500.0,0.00016438,2]
[332682291,1721436642578,-923.59,0.00016438,2]
[332682292,1721436642589,-853.26,0.00016438,2]
[332682293,1721436642599,-500.0,0.00016438,2]
[332682294,1721436642608,-775.2,0.00016438,2]
[332682295,1721436642619,-771.82,0.00016438,2]
[332682296,1721436642630,-1880.34,0.00016438,2]
[332682297,1721436642640,-892.47,0.00016438,2]
[332682298,1721436642651,-500.0,0.00016438,2]
[332682299,1721436642661,-500.0,0.00016438,2]
[332682300,1721436642672,-722.25,0.00016438,2]
[332682301,1721436642682,-500.0,0.00016438,2]
[332682302,1721436642691,-2822.78,0.00016438,2]
[332682303,1721436642701,-500.0,0.00016438,2]
[332682304,1721436642711,-164.59305918,0.00016438,2]
[332682305,1721436642720,-500.0,0.00016438,2]
[332682306,1721436642729,-1850.74,0.00016438,2]
[332682307,1721436642738,-593.59,0.00016438,2]
[332682308,1721436642747,-1811.84,0.00016438,2]
[332682309,1721436642757,-500.0,0.00016438,2]
[332682310,1721436642766,-500.0,0.00016438,2]
[332682311,1721436642775,-1895.78,0.00016438,2]
[332682312,1721436642784,-500.0,0.00016438,2]
[332682313,1721436642793,-798.07,0.00016438,2]
[332682314,1721436642802,-566.74,0.00016438,2]
[332682315,1721436642812,-500.0,0.00016438,2]
[332682316,1721436642821,-502.93090763,0.00016438,2]
[332682317,1721436642831,-589.42,0.00016438,2]
[332682318,1721436642840,-500.0,0.00016438,2]
[332682319,1721436642849,-500.0,0.00016438,2]
[332682320,1721436642859,-971.55,0.00016438,2]
[332682321,1721436642868,-500.0,0.00016438,2]
[332682322,1721436642877,-500.0,0.00016438,2]
[332682323,1721436642886,-500.0,0.00016438,2]
[332682324,1721436642895,-500.0,0.00016438,2]
[332682325,1721436642904,-500.0,0.00016438,2]
[332682326,1721436642914,-500.0,0.00016438,2]
[332682328,1721436642923,-500.0,0.00016438,2]
[332682330,1721436642933,-500.0,0.00016438,2]
[332682332,1721436642942,-500.0,0.00016438,2]
[332682333,1721436642952,-1504.96,0.00016438,2]
[332682334,1721436642962,-1259.84,0.00016438,2]
[332682335,1721436642971,-500.0,0.00016438,2]
[332682336,1721436642980,-500.0,0.00016438,2]
[332682337,1721436642989,-500.0,0.00016438,2]
[332682338,1721436642998,-500.0,0.00016438,2]
[332682339,1721436643008,-523.27,0.00016438,2]
[332682340,1721436643017,-500.0,0.00016438,2]
[332682341,1721436643026,-1355.04,0.00016438,2]
[332682343,1721436643035,-500.0,0.00016438,2]
[332682344,1721436643045,-745.31,0.00016438,2]
[332682345,1721436643054,-500.0,0.00016438,2]
[332682346,1721436643063,-1761.55,0.00016438,2]
[332682347,1721436643073,-862.78,0.00016438,2]
[332682348,1721436643083,-578.34013154,0.00016438,2]
[332682349,1721436643092,-500.0,0.00016438,2]
[332682350,1721436643101,-1090.58,0.00016438,2]
[332682351,1721436643112,-500.0,0.00016438,2]
[332682352,1721436643122,-502.01701319,0.00016438,2]
[332682353,1721436643131,-2171.54,0.00016438,2]
[332682354,1721436643141,-504.3,0.00016438,2]
[332682355,1721436643150,-500.0,0.00016438,2]
[332682356,1721436643159,-500.0,0.00016438,2]
[332682357,1721436643168,-822.56,0.00016438,2]
[332682358,1721436643177,-500.0,0.00016438,2]
[332682359,1721436643188,-500.0,0.00016438,2]
[332682360,1721436643198,-612.79,0.00016438,2]
[332682361,1721436643208,-2174.9,0.00016438,2]
[332682362,1721436643217,-500.0,0.00016438,2]
[332682363,1721436643227,-4037.99,0.00016438,2]
[332682364,1721436643236,-1177.66,0.00016438,2]
[332682365,1721436643245,-812.55,0.00016438,2]
[332682367,1721436643254,-500.0,0.00016438,2]
[332682370,1721436643263,-500.0,0.00016438,2]
[332682372,1721436643273,-500.0,0.00016438,2]
[332682373,1721436643283,-500.0,0.00016438,2]
[332682374,1721436643295,-1018.83,0.00016438,2]
[332682375,1721436643305,-500.0,0.00016438,2]
[332682376,1721436643314,-512.79557727,0.00016438,2]
[332682377,1721436643323,-502.41637901,0.00016438,2]
[332682378,1721436643333,-500.0,0.00016438,2]
[332682379,1721436643342,-500.0,0.00016438,2]
[332682380,1721436643351,-907.97,0.00016438,2]
[332682381,1721436643360,-500.0,0.00016438,2]
[332682382,1721436643369,-506.21006842,0.00016438,2]
[332682383,1721436643378,-516.54,0.00016438,2]
[332682384,1721436643387,-500.0,0.00016438,2]
[332682385,1721436643396,-997.51,0.00016438,2]
[332682386,1721436643406,-711.5,0.00016438,2]
[332682387,1721436643422,-500.0,0.00016438,2]
[332682388,1721436643432,-625.16,0.00016438,2]
[332682389,1721436643443,-500.0,0.00016438,2]
[332682390,1721436643454,-477.56876561,0.00016438,2]
[332682391,1721436643464,-1544.95,0.00016438,2]
[332682392,1721436643475,-500.0,0.00016438,2]
[332682393,1721436643486,-500.0,0.00016438,2]
[332682394,1721436643498,-500.0,0.00016438,2]
[332682395,1721436643508,-500.0,0.00016438,2]
[332682396,1721436643518,-500.0,0.00016438,2]
[332682397,1721436643528,-1981.12,0.00016438,2]
[332682398,1721436643539,-500.0,0.00016438,2]
[332682399,1721436643550,-500.0,0.00016438,2]
[332682400,1721436643560,-422.71958696,0.00016438,2]
[332682401,1721436643571,-500.0,0.00016438,2]
[332682402,1721436643583,-500.0,0.00016438,2]
[332682403,1721436643593,-500.0,0.00016438,2]
[332682404,1721436643603,-1120.46,0.00016438,2]
[332682405,1721436643614,-500.0,0.00016438,2]
[332682406,1721436643624,-500.0,0.00016438,2]
[332682407,1721436643635,-504.20490734,0.00016438,2]
[332682408,1721436643646,-354.8589622,0.00016438,2]
[332682409,1721436643656,-521.58916709,0.00016438,2]
[332682410,1721436643666,-727.48,0.00016438,2]
[332682411,1721436643675,-500.0,0.00016438,2]
[332682412,1721436643685,-500.0,0.00016438,2]
[332682413,1721436643695,-500.0,0.00016438,2]
[332682414,1721436643711,-500.0,0.00016438,2]
[332682415,1721436643722,-756.44,0.00016438,2]
[332682416,1721436643731,-500.0,0.00016438,2]
[332682417,1721436643743,-500.0,0.00016438,2]
[332682418,1721436643754,-500.0,0.00016438,2]
[332682419,1721436643765,-500.0,0.00016438,2]
[332682420,1721436643776,-500.0,0.00016438,2]
[332682421,1721436643787,-459.79250006,0.00016438,2]
[332682422,1721436643797,-402.243462,0.00016438,2]
[332682423,1721436643808,-1063.3,0.00016438,2]
[332682424,1721436643817,-500.0,0.00016438,2]
[332682425,1721436643827,-500.0,0.00016438,2]
[332682426,1721436643838,-254.36117769,0.00016438,2]
[332682442,1721436645705,-0.00112055,0.00016438,2]
[332682492,1721436740775,208.46,0.00010959,2]
[332682493,1721436742072,278.39,0.0002502,120]
[332682494,1721436797496,5850.0,0.000214,30]
[332682501,1721437392897,150.0,0.000214,30]
[332682503,1721437511835,567.73879262,9.999e-05,2]
[332682504,1721437544437,-212.2716178,0.00014504,2]
[332682505,1721437544460,-1161.12367768,0.00014564,2]
[332682506,1721437560332,550.69938837,0.0001212,2]
[332682507,1721437608487,500.53764773,0.00012119,2]
[332682508,1721437627176,-199.544606,0.00014554,2]
[332682509,1721437627200,-52.08920484,0.00014564,2]
[332682510,1721437635842,-500.0,0.00014564,2]
[332682511,1721437638093,-2637.04621482,0.00014564,2]
[332682512,1721437640604,215.2128624,9.999e-05,2]
[332682513,1721437643117,-226.89772375,0.00014564,2]
[332682514,1721437643145,-2872.89363556,0.00014564,2]
[332682515,1721437645133,-553.15527517,0.00014564,2]
[332682516,1721437648103,-723.35891699,0.00014564,2]
[332682518,1721437746115,-16000.0,0.00014564,2]
[332682519,1721437751110,-173.43535119,0.00014564,2]
[332682520,1721437780906,165.405663,0.00014664,2]
[332682521,1721437780929,1000.0,0.00014664,2]
[332682522,1721437780952,133.40927981,0.00014664,2]
[332682523,1721437780973,270.01731708,0.00014664,2]
[332682524,1721437780993,245.0,0.00014664,2]
[332682525,1721437781015,250.0,0.00014664,2]
[332682526,1721437804940,238.38058806,0.0002502,120]
[332682527,1721437819786,1000.0,0.00025,120]
[332682599,1721437841011,-3132.5354852,0.00014485,2]
[332682600,1721437841021,-2111.96355251,0.00014664,2]
[332682601,1721437841030,-166.666666,0.00014795,2]
[332682602,1721437841039,-199.544606,0.00014933,2]
[332682603,1721437841049,-199.544606,0.00015313,2]
[332682604,1721437841058,-153.0,0.000155,2]
[332682605,1721437841067,-153.0,0.000155,2]
[332682606,1721437841076,-153.0,0.00015541,2]
[332682607,1721437841086,-153.0,0.00015541,2]
[332682608,1721437841095,-153.0,0.00015541,2]
[332682609,1721437841105,-153.0,0.000156,2]
[332682610,1721437841114,-1706.07290179,0.00015608,2]
[332682611,1721437841124,-153.0,0.00015678,2]
[332682612,1721437841133,-153.0,0.00015678,2]
[332682613,1721437841143,-153.0,0.00015678,2]
[332682614,1721437841152,-242.2625822,0.00015678,2]
[332682615,1721437841162,-4000.60477167,0.00015708,2]
[332682616,1721437841171,-20746.06049871,0.00015708,2]
[332682617,1721437841181,-17110.84801882,0.00015708,2]
[332682618,1721437841190,-153.0,0.00015778,2]
[332682619,1721437841199,-1628.0642344,0.00015851,2]
[332682620,1721437841208,-1634.59229075,0.00015851,2]
[332682621,1721437841217,-492.98180621,0.00016038,2]
[332682622,1721437841226,-1043.9320593,0.00016095,2]
[332682623,1721437841235,-206.5463282,0.00016164,2]
[332682624,1721437841245,-206.5463282,0.00016164,2]
[332682625,1721437841254,-206.5463282,0.00016164,2]
[332682626,1721437841263,-206.5463282,0.00016164,2]
[332682627,1721437841272,-153.0,0.00016164,2]
[332682628,1721437841281,-154.2268813,0.00016164,2]
[332682629,1721437841291,-500.0,0.00016188,2]
[332682630,1721437841301,-500.0,0.00016188,2]
[332682631,1721437841311,-500.0,0.00016188,2]
[332682632,1721437841321,-500.0,0.00016188,2]
[332682633,1721437841330,-550.0,0.00016188,2]
[332682634,1721437841339,-500.0,0.00016188,2]
[332682635,1721437841350,-500.0,0.00016188,2]
[332682636,1721437841360,-500.0,0.00016188,2]
[332682637,1721437841371,-5302.51874707,0.00016189,2]
[332682638,1721437841380,-1408.0,0.00016258,2]
[332682639,1721437841390,-180.3981953,0.00016273,2]
[332682640,1721437841401,-2337.4886,0.000163,2]
[332682641,1721437841411,-153.0,0.00016301,2]
[332682642,1721437841423,-153.0,0.00016301,2]
[332682643,1721437841433,-941.25374337,0.00016309,2]
[332682644,1721437841442,-367.2522507,0.0001632,2]
[332682645,1721437841451,-650.12244866,0.00016323,2]
[332682646,1721437841460,-2111.4306405,0.00016338,2]
[332682647,1721437841469,-1742.367565,0.00016338,2]
[332682648,1721437841479,-1706.07290179,0.0001634,2]
[332682649,1721437841489,-31512.4193115,0.00016408,2]
[332682650,1721437841500,-15756.2096557,0.00016415,2]
[332682651,1721437841510,-47268.6289672,0.00016418,2]
[332682652,1721437841521,-173.35805726,0.00016424,2]
[332682653,1721437841532,-340.6702195,0.00016424,2]
[332682654,1721437841544,-500.0,0.00016424,2]
[332682655,1721437841556,-500.0,0.00016424,2]
[332682656,1721437841568,-259.19786085,0.00016424,2]
[332682657,1721437841578,-500.0,0.00016424,2]
[332682658,1721437841589,-500.0,0.00016424,2]
[332682659,1721437841600,-261.72931275,0.00016424,2]
[332682660,1721437841609,-500.0,0.00016424,2]
[332682661,1721437841618,-392.56591394,0.00016424,2]